[Event "Fast Chess"]
[Site "ChessKid.com"]
[Date "2020.04.07"]
[Round "1"]
[White "Dai, Lana"]
[Black "Georgiev, Maximilian"]
[Result "0-1"]
[ECO "C55"]
[WhiteElo "1231"]
[BlackElo "1323"]
[PlyCount "114"]
[EventDate "2020.??.??"]
[TimeControl "600"]
[WhiteClock "0:06:38"]
[BlackClock "0:03:17"]

1. e4 {[%emt 0:00:02]} e5 {[%emt 0:00:01]} 2. Nf3 {[%emt 0:00:03]} Nc6 {
[%emt 0:00:00]} 3. Bc4 {[%emt 0:00:03]} h6 {[%emt 0:00:02]} 4. Nc3 {[%emt 0:00:
03]} Nf6 {[%emt 0:00:01]} 5. h3 {[%emt 0:00:05]} Bb4 {[%emt 0:00:02]} 6. d3 {
[%emt 0:00:05]} a6 {[%emt 0:00:02]} 7. Be3 {[%emt 0:00:05]} O-O {[%emt 0:00:02]
} 8. O-O {[%emt 0:00:05]} d6 {[%emt 0:00:03]} 9. Bd5 {[%emt 0:00:10]} Nxd5 {
[%emt 0:00:03]} 10. exd5 {[%emt 0:00:01]} Nd4 {[%emt 0:00:04]} 11. Bxd4 {
[%emt 0:00:02]} exd4 {[%emt 0:00:01]} 12. Nxd4 {[%emt 0:00:01]} Re8 {[%emt 0:
00:05]} 13. Re1 {[%emt 0:00:05]} Rxe1+ {[%emt 0:00:03]} 14. Qxe1 {[%emt 0:00:
02]} c5 {[%emt 0:00:05]} 15. Nf3 {[%emt 0:00:06]} Bd7 {[%emt 0:00:05]} 16. d4 {
[%emt 0:00:08]} cxd4 {[%emt 0:00:03]} 17. Nxd4 {[%emt 0:00:01]} Qc7 {[%emt 0:
00:06]} 18. Nf5 {[%emt 0:00:08]} Bxf5 {[%emt 0:00:02]} 19. Rc1 {[%emt 0:00:05]}
Bd7 {[%emt 0:00:05]} 20. a3 {[%emt 0:01:45]} Ba5 {[%emt 0:00:03]} 21. Rd1 {
[%emt 0:00:13]} Ba4 {[%emt 0:00:03]} 22. Rd3 {[%emt 0:00:07]} Bxc2 {[%emt 0:00:
04]} 23. Re3 {[%emt 0:00:06]} Qd7 {[%emt 0:00:12]} 24. b4 {[%emt 0:00:15]} Bb6
{[%emt 0:00:03]} 25. Re2 {[%emt 0:00:05]} Bg6 {[%emt 0:00:06]} 26. a4 {[%emt 0:
00:10]} f6 {[%emt 0:00:03]} 27. a5 {[%emt 0:00:02]} Bd4 {[%emt 0:00:02]} 28.
Nd1 {[%emt 0:00:08]} Re8 {[%emt 0:00:14]} 29. Rxe8+ {[%emt 0:00:07]} Bxe8 {
[%emt 0:00:01]} 30. Ne3 {[%emt 0:00:07]} Kf7 {[%emt 0:00:04]} 31. Nc4 {[%emt 0:
00:06]} b5 {[%emt 0:00:03]} 32. Nb6 {[%emt 0:00:02]} Bxb6 {[%emt 0:00:02]} 33.
axb6 {[%emt 0:00:02]} Qb7 {[%emt 0:00:02]} 34. Qe3 {[%emt 0:00:12]} g5 {
[%emt 0:00:12]} 35. Qd4 {[%emt 0:00:18]} Qd7 {[%emt 0:00:12]} 36. Qa1 {[%emt 0:
00:13]} Qb7 {[%emt 0:00:04]} 37. Qd4 {[%emt 0:00:02]} Kg6 {[%emt 0:00:07]} 38.
Qe4+ {[%emt 0:00:07]} f5 {[%emt 0:00:03]} 39. Qxe8+ {[%emt 0:00:03]} Kg7 {
[%emt 0:00:02]} 40. Qe3 {[%emt 0:00:19]} f4 {[%emt 0:00:03]} 41. Qd4+ {[%emt 0:
00:02]} Kf7 {[%emt 0:00:05]} 42. Qh8 {[%emt 0:00:09]} Qxb6 {[%emt 0:00:04]} 43.
Qh7+ {[%emt 0:00:03]} Ke8 {[%emt 0:00:04]} 44. Qxh6 {[%emt 0:00:04]} Qd4 {
[%emt 0:00:03]} 45. Qxg5 {[%emt 0:00:08]} Qxb4 {[%emt 0:00:02]} 46. Qxf4 {
[%emt 0:00:06]} Qxf4 {[%emt 0:00:02]} 47. g3 {[%emt 0:00:03]} Qc1+ {[%emt 0:00:
01]} 48. Kg2 {[%emt 0:00:02]} a5 {[%emt 0:00:02]} 49. f4 {[%emt 0:00:01]} a4 {
[%emt 0:00:02]} 50. f5 {[%emt 0:00:02]} a3 {[%emt 0:00:03]} 51. f6 {[%emt 0:00:
03]} a2 {[%emt 0:00:01]} 52. f7+ {[%emt 0:00:04]} Kxf7 {[%emt 0:00:01]} 53. g4
{[%emt 0:00:02]} a1=Q {[%emt 0:00:02]} 54. g5 {[%emt 0:00:01]} Qg7 {[%emt 0:00:
03]} 55. g6+ {[%emt 0:00:02]} Qxg6+ {[%emt 0:00:02]} 56. Kh2 {[%emt 0:00:02]}
Qd2+ {[%emt 0:00:04]} 57. Kh1 {[%emt 0:00:03]} Qdg2# {[%emt 0:00:01]
TallSnazzyBall won by checkmate} 0-1

[Event "Fast Chess"]
[Site "ChessKid.com"]
[Date "2020.04.07"]
[Round "1"]
[White "Sasse, Gabriel"]
[Black "Li, Patrick"]
[Result "1-0"]
[ECO "C57"]
[WhiteElo "1281"]
[BlackElo "904"]
[PlyCount "33"]
[EventDate "2020.??.??"]
[TimeControl "600"]
[WhiteClock "0:08:09"]
[BlackClock "0:08:57"]

1. e4 {[%emt 0:00:01]} e5 {[%emt 0:00:02]} 2. Nf3 {[%emt 0:00:01]} Nc6 {
[%emt 0:00:03]} 3. Bc4 {[%emt 0:00:00]} Nf6 {[%emt 0:00:02]} 4. Ng5 {[%emt 0:
00:02]} d5 {[%emt 0:00:06]} 5. exd5 {[%emt 0:00:04]} Nxd5 {[%emt 0:00:06]} 6.
Qf3 {[%emt 0:00:03]} Nf6 {[%emt 0:00:14]} 7. Nxf7 {[%emt 0:00:04]} Qd7 {
[%emt 0:00:10]} 8. Nxh8 {[%emt 0:00:04]} Bb4 {[%emt 0:00:01]} 9. Nc3 {[%emt 0:
00:03]} Bxc3 {[%emt 0:00:07]} 10. dxc3 {[%emt 0:00:02]} Na5 {[%emt 0:00:05]}
11. Bb3 {[%emt 0:00:07]} Nxb3 {[%emt 0:00:07]} 12. cxb3 {[%emt 0:00:03]} Qd6 {
[%emt 0:00:10]} 13. O-O {[%emt 0:00:04]} Bg4 {[%emt 0:00:07]} 14. Qe3 {[%emt 0:
00:11]} Nd5 {[%emt 0:00:09]} 15. Qg5 {[%emt 0:00:07]} Nf6 {[%emt 0:00:10]} 16.
Qxg7 {[%emt 0:00:04]} Qd2 {[%emt 0:00:14]} 17. Bxd2 {[%emt 0:00:03]
LimeFarActor won by resignation} 1-0

[Event "Fast Chess"]
[Site "ChessKid.com"]
[Date "2020.04.07"]
[Round "2"]
[White "Georgiev, Maximilian"]
[Black "Sasse, Gabriel"]
[Result "1-0"]
[ECO "C48"]
[WhiteElo "1330"]
[BlackElo "1274"]
[PlyCount "65"]
[EventDate "2020.??.??"]
[TimeControl "600"]
[WhiteClock "0:08:04"]
[BlackClock "0:08:27"]

1. e4 {[%emt 0:00:00]} e5 {[%emt 0:00:01]} 2. Nf3 {[%emt 0:00:01]} Nc6 {
[%emt 0:00:01]} 3. Bb5 {[%emt 0:00:00]} Nf6 {[%emt 0:00:01]} 4. Bxc6 {[%emt 0:
00:02]} dxc6 {[%emt 0:00:01]} 5. Nc3 {[%emt 0:00:02]} Bc5 {[%emt 0:00:01]} 6.
h3 {[%emt 0:00:03]} Bb4 {[%emt 0:00:08]} 7. O-O {[%emt 0:00:01]} Bxc3 {[%emt 0:
00:03]} 8. dxc3 {[%emt 0:00:01]} Qxd1 {[%emt 0:00:03]} 9. Rxd1 {[%emt 0:00:01]}
O-O {[%emt 0:00:02]} 10. Nxe5 {[%emt 0:00:04]} Nxe4 {[%emt 0:00:04]} 11. Re1 {
[%emt 0:00:03]} Nf6 {[%emt 0:00:05]} 12. Nf3 {[%emt 0:00:01]} Bf5 {[%emt 0:00:
07]} 13. Nd4 {[%emt 0:00:06]} Bg6 {[%emt 0:00:03]} 14. a4 {[%emt 0:00:05]} c5 {
[%emt 0:00:05]} 15. Nb5 {[%emt 0:00:04]} Rab8 {[%emt 0:00:06]} 16. Nxc7 {
[%emt 0:00:04]} Bxc2 {[%emt 0:00:03]} 17. Nb5 {[%emt 0:00:02]} a6 {[%emt 0:00:
08]} 18. Na3 {[%emt 0:00:03]} Bg6 {[%emt 0:00:03]} 19. a5 {[%emt 0:00:02]} Rbd8
{[%emt 0:00:05]} 20. Nc4 {[%emt 0:00:04]} Bd3 {[%emt 0:00:04]} 21. b3 {[%emt 0:
00:03]} Bxc4 {[%emt 0:00:02]} 22. bxc4 {[%emt 0:00:02]} Rd3 {[%emt 0:00:03]}
23. Ba3 {[%emt 0:00:06]} Rxc3 {[%emt 0:00:04]} 24. Bxc5 {[%emt 0:00:01]} Rxc4 {
[%emt 0:00:02]} 25. Bxf8 {[%emt 0:00:01]} Kxf8 {[%emt 0:00:04]} 26. Rad1 {
[%emt 0:00:05]} g6 {[%emt 0:00:03]} 27. Rd8+ {[%emt 0:00:04]} Kg7 {[%emt 0:00:
03]} 28. g4 {[%emt 0:00:06]} Ra4 {[%emt 0:00:04]} 29. g5 {[%emt 0:00:03]} Nh5 {
[%emt 0:00:06]} 30. Ree8 {[%emt 0:00:07]} h6 {[%emt 0:00:10]} 31. Rg8+ {
[%emt 0:00:03]} Kh7 {[%emt 0:00:02]} 32. Rh8+ {[%emt 0:00:02]} Kg7 {[%emt 0:00:
01]} 33. Rdg8# {[%emt 0:00:01] TallSnazzyBall won by checkmate} 1-0

[Event "Fast Chess"]
[Site "ChessKid.com"]
[Date "2020.04.07"]
[Round "2"]
[White "Li, Patrick"]
[Black "Dai, Lana"]
[Result "0-1"]
[ECO "C50"]
[WhiteElo "901"]
[BlackElo "1233"]
[PlyCount "34"]
[EventDate "2020.??.??"]
[TimeControl "600"]
[WhiteClock "0:08:23"]
[BlackClock "0:07:53"]

1. e4 {[%emt 0:00:01]} e5 {[%emt 0:00:03]} 2. Nf3 {[%emt 0:00:03]} Nc6 {
[%emt 0:00:03]} 3. Nc3 {[%emt 0:00:01]} Bc5 {[%emt 0:00:04]} 4. Bc4 {[%emt 0:
00:01]} d6 {[%emt 0:00:04]} 5. d3 {[%emt 0:00:04]} h6 {[%emt 0:00:02]} 6. O-O {
[%emt 0:00:05]} Bg4 {[%emt 0:00:02]} 7. h3 {[%emt 0:00:03]} Bh5 {[%emt 0:00:02]
} 8. d4 {[%emt 0:00:12]} exd4 {[%emt 0:00:03]} 9. Ne2 {[%emt 0:00:09]} Bxf3 {
[%emt 0:00:06]} 10. gxf3 {[%emt 0:00:05]} Nf6 {[%emt 0:00:05]} 11. Nxd4 {
[%emt 0:00:03]} Bxd4 {[%emt 0:00:02]} 12. c3 {[%emt 0:00:08]} Bc5 {[%emt 0:00:
11]} 13. Qb3 {[%emt 0:00:16]} O-O {[%emt 0:00:20]} 14. Qxb7 {[%emt 0:00:07]}
Na5 {[%emt 0:00:10]} 15. Qb5 {[%emt 0:00:18]} Nxc4 {[%emt 0:00:02]} 16. Qxc4 {
[%emt 0:00:08]} Nh5 {[%emt 0:00:16]} 17. Qb4 {[%emt 0:00:23]} Bxb4 {[%emt 0:00:
03] TopBrownCave won by resignation} 0-1

[Event "Fast Chess"]
[Site "ChessKid.com"]
[Date "2020.04.08"]
[Round "1"]
[White "Li, Patrick"]
[Black "Georgiev, Maximilian"]
[Result "1-0"]
[ECO "C55"]
[WhiteElo "987"]
[BlackElo "1387"]
[PlyCount "123"]
[EventDate "2020.??.??"]
[TimeControl "600"]
[WhiteClock "0:06:03"]
[BlackClock "0:02:07"]

1. e4 {[%emt 0:00:32]} e5 {[%emt 0:00:01]} 2. Nf3 {[%emt 0:00:01]} Nc6 {
[%emt 0:00:01]} 3. Nc3 {[%emt 0:00:00]} Nf6 {[%emt 0:00:02]} 4. Bc4 {[%emt 0:
00:01]} h6 {[%emt 0:00:02]} 5. O-O {[%emt 0:00:06]} Bb4 {[%emt 0:00:02]} 6. h3
{[%emt 0:00:04]} O-O {[%emt 0:00:03]} 7. a3 {[%emt 0:00:09]} Bxc3 {[%emt 0:00:
02]} 8. dxc3 {[%emt 0:00:04]} Nxe4 {[%emt 0:00:01]} 9. Qd5 {[%emt 0:00:04]} Nf6
{[%emt 0:00:03]} 10. Qc5 {[%emt 0:00:09]} Re8 {[%emt 0:00:06]} 11. Re1 {
[%emt 0:00:09]} e4 {[%emt 0:00:03]} 12. Nd2 {[%emt 0:00:06]} d6 {[%emt 0:00:06]
} 13. Qb5 {[%emt 0:00:10]} a6 {[%emt 0:00:03]} 14. Qb3 {[%emt 0:00:06]} Na5 {
[%emt 0:00:06]} 15. Qa2 {[%emt 0:00:07]} Nxc4 {[%emt 0:00:02]} 16. Qxc4 {
[%emt 0:00:03]} Be6 {[%emt 0:00:05]} 17. Qa4 {[%emt 0:00:09]} Bd7 {[%emt 0:00:
04]} 18. Qb4 {[%emt 0:00:05]} b6 {[%emt 0:00:04]} 19. Nxe4 {[%emt 0:00:09]} Bc6
{[%emt 0:00:05]} 20. Nxf6+ {[%emt 0:00:08]} Qxf6 {[%emt 0:00:04]} 21. Rxe8+ {
[%emt 0:00:12]} Rxe8 {[%emt 0:00:01]} 22. Be3 {[%emt 0:00:11]} Qg6 {[%emt 0:00:
04]} 23. g3 {[%emt 0:00:14]} Qxc2 {[%emt 0:00:03]} 24. Qg4 {[%emt 0:00:11]} g6
{[%emt 0:00:10]} 25. Bxh6 {[%emt 0:00:05]} Kh7 {[%emt 0:00:04]} 26. Bg5 {
[%emt 0:00:18]} Kg7 {[%emt 0:00:03]} 27. Qd4+ {[%emt 0:00:05]} Kg8 {[%emt 0:00:
07]} 28. Bh6 {[%emt 0:00:07]} Re5 {[%emt 0:00:17]} 29. Qf4 {[%emt 0:00:27]} Qf5
{[%emt 0:00:06]} 30. Qxf5 {[%emt 0:00:07]} Rxf5 {[%emt 0:00:01]} 31. Re1 {
[%emt 0:00:07]} Kh7 {[%emt 0:00:05]} 32. Bd2 {[%emt 0:00:14]} Rd5 {[%emt 0:00:
06]} 33. Bf4 {[%emt 0:00:21]} g5 {[%emt 0:00:10]} 34. Be3 {[%emt 0:00:12]} Re5
{[%emt 0:00:03]} 35. f4 {[%emt 0:00:20]} gxf4 {[%emt 0:00:03]} 36. gxf4 {
[%emt 0:00:04]} Rh5 {[%emt 0:00:03]} 37. Kh2 {[%emt 0:00:11]} Bd7 {[%emt 0:00:
02]} 38. Bd4 {[%emt 0:00:12]} Rxh3+ {[%emt 0:00:04]} 39. Kg2 {[%emt 0:00:04]}
Rh4 {[%emt 0:00:08]} 40. Re7 {[%emt 0:00:03]} Bc6+ {[%emt 0:00:10]} 41. Kg3 {
[%emt 0:00:06]} Rh1 {[%emt 0:00:06]} 42. Rxf7+ {[%emt 0:00:06]} Kg6 {[%emt 0:
00:01]} 43. Rg7+ {[%emt 0:00:08]} Kh6 {[%emt 0:00:06]} 44. Rxc7 {[%emt 0:00:31]
} Rg1+ {[%emt 0:00:05]} 45. Bxg1 {[%emt 0:00:20]} Bd5 {[%emt 0:00:02]} 46. Be3
{[%emt 0:00:08]} Kg6 {[%emt 0:00:02]} 47. Rd7 {[%emt 0:00:04]} Be6 {[%emt 0:00:
06]} 48. Rxd6 {[%emt 0:00:01]} Kf5 {[%emt 0:00:04]} 49. Rxb6 {[%emt 0:00:02]}
a5 {[%emt 0:00:03]} 50. Ra6 {[%emt 0:00:03]} Bc8 {[%emt 0:00:05]} 51. Rxa5+ {
[%emt 0:00:02]} Ke4 {[%emt 0:00:03]} 52. Rc5 {[%emt 0:00:04]} Kxe3 {[%emt 0:00:
02]} 53. Rxc8 {[%emt 0:00:01]} Ke4 {[%emt 0:00:03]} 54. b4 {[%emt 0:00:01]} Kf5
{[%emt 0:00:03]} 55. b5 {[%emt 0:00:01]} Ke6 {[%emt 0:00:01]} 56. b6 {[%emt 0:
00:01]} Kd7 {[%emt 0:00:01]} 57. b7 {[%emt 0:00:01]} Kd6 {[%emt 0:00:02]} 58.
b8=Q+ {[%emt 0:00:01]} Ke6 {[%emt 0:00:01]} 59. Qb5 {[%emt 0:00:01]} Ke7 {
[%emt 0:00:04]} 60. Rc6 {[%emt 0:00:02]} Kd7 {[%emt 0:00:02]} 61. Qb7+ {
[%emt 0:00:02]} Ke8 {[%emt 0:00:02]} 62. Rc8# {[%emt 0:00:01] WideClassyQuiz
won by checkmate} 1-0

[Event "Fast Chess"]
[Site "ChessKid.com"]
[Date "2020.04.08"]
[Round "1"]
[White "Dai, Lana"]
[Black "Zerza, Julia"]
[Result "1-0"]
[ECO "C25"]
[WhiteElo "1228"]
[BlackElo "828"]
[PlyCount "21"]
[EventDate "2020.??.??"]
[TimeControl "600"]
[WhiteClock "0:08:26"]
[BlackClock "0:08:26"]

1. e4 {[%emt 0:00:01]} e5 {[%emt 0:00:03]} 2. Nc3 {[%emt 0:00:02]} d6 {[%emt 0:
00:05]} 3. Bc4 {[%emt 0:00:05]} g6 {[%emt 0:00:12]} 4. d3 {[%emt 0:00:04]} h5 {
[%emt 0:00:03]} 5. h3 {[%emt 0:00:05]} Nf6 {[%emt 0:00:09]} 6. Nf3 {[%emt 0:00:
02]} Nc6 {[%emt 0:00:17]} 7. Bg5 {[%emt 0:00:03]} Be7 {[%emt 0:00:21]} 8. Nd5 {
[%emt 0:00:21]} Na5 {[%emt 0:00:19]} 9. Bxf6 {[%emt 0:00:24]} Bxf6 {[%emt 0:00:
03]} 10. Nxf6+ {[%emt 0:00:07]} Qxf6 {[%emt 0:00:03]} 11. b4 {[%emt 0:00:20]
TopBrownCave won - game abandoned} 1-0

[Event "Fast Chess"]
[Site "ChessKid.com"]
[Date "2020.04.08"]
[Round "2"]
[White "Li, Patrick"]
[Black "Dai, Lana"]
[Result "0-1"]
[ECO "C57"]
[WhiteElo "983"]
[BlackElo "1231"]
[PlyCount "68"]
[EventDate "2020.??.??"]
[TimeControl "600"]
[WhiteClock "0:05:56"]
[BlackClock "0:06:28"]

1. e4 {[%emt 0:00:00]} e5 {[%emt 0:00:01]} 2. Nf3 {[%emt 0:00:01]} Nc6 {
[%emt 0:00:03]} 3. Nc3 {[%emt 0:00:01]} Nf6 {[%emt 0:00:03]} 4. Bc4 {[%emt 0:
00:01]} Bc5 {[%emt 0:00:05]} 5. Ng5 {[%emt 0:00:01]} O-O {[%emt 0:00:12]} 6.
Nxf7 {[%emt 0:00:04]} Rxf7 {[%emt 0:00:04]} 7. Bxf7+ {[%emt 0:00:01]} Kxf7 {
[%emt 0:00:01]} 8. O-O {[%emt 0:00:08]} Kg8 {[%emt 0:00:02]} 9. Qe2 {[%emt 0:
00:03]} d6 {[%emt 0:00:05]} 10. Qc4+ {[%emt 0:00:03]} Kh8 {[%emt 0:00:14]} 11.
Nd5 {[%emt 0:00:08]} Nxd5 {[%emt 0:00:08]} 12. Qxd5 {[%emt 0:00:04]} Bg4 {
[%emt 0:00:08]} 13. h3 {[%emt 0:00:06]} Be2 {[%emt 0:00:03]} 14. Re1 {[%emt 0:
00:04]} Bb5 {[%emt 0:00:04]} 15. Qf7 {[%emt 0:00:12]} Nb4 {[%emt 0:00:26]} 16.
Rd1 {[%emt 0:00:16]} Nxc2 {[%emt 0:00:04]} 17. Rb1 {[%emt 0:00:04]} Be2 {
[%emt 0:00:06]} 18. Rf1 {[%emt 0:00:10]} Bxf1 {[%emt 0:00:06]} 19. Kxf1 {
[%emt 0:00:01]} Bd4 {[%emt 0:00:25]} 20. b3 {[%emt 0:00:20]} Rc8 {[%emt 0:00:
16]} 21. Bb2 {[%emt 0:00:08]} c5 {[%emt 0:00:11]} 22. Bxd4 {[%emt 0:00:06]} Rc7
{[%emt 0:00:04]} 23. Qd5 {[%emt 0:00:05]} cxd4 {[%emt 0:00:09]} 24. Rc1 {
[%emt 0:00:19]} Nb4 {[%emt 0:00:18]} 25. Rxc7 {[%emt 0:00:04]} Nxd5 {[%emt 0:
00:04]} 26. Rxb7 {[%emt 0:00:09]} a5 {[%emt 0:00:07]} 27. exd5 {[%emt 0:00:07]}
Kg8 {[%emt 0:00:10]} 28. b4 {[%emt 0:00:11]} axb4 {[%emt 0:00:05]} 29. Rxb4 {
[%emt 0:00:02]} Qa5 {[%emt 0:00:02]} 30. Rb8+ {[%emt 0:00:03]} Kf7 {[%emt 0:00:
03]} 31. Rb7+ {[%emt 0:00:09]} Kf6 {[%emt 0:00:03]} 32. Rb8 {[%emt 0:00:15]}
Qxd2 {[%emt 0:00:05]} 33. Rf8+ {[%emt 0:00:03]} Ke7 {[%emt 0:00:04]} 34. Rf3 {
[%emt 0:00:05]} Qd1# {[%emt 0:00:05] TopBrownCave won by checkmate} 0-1

[Event "Fast Chess"]
[Site "ChessKid.com"]
[Date "2020.04.08"]
[Round "2"]
[White "Georgiev, Maximilian"]
[Black "Li, Tobias"]
[Result "0-1"]
[ECO "C50"]
[WhiteElo "1376"]
[BlackElo "1237"]
[PlyCount "83"]
[EventDate "2020.??.??"]
[TimeControl "600"]
[WhiteClock "0:05:58"]
[BlackClock "0:07:09"]

1. e4 {[%emt 0:00:00]} e5 {[%emt 0:00:04]} 2. Nf3 {[%emt 0:00:01]} Nc6 {
[%emt 0:00:03]} 3. Bc4 {[%emt 0:00:01]} Bc5 {[%emt 0:00:04]} 4. d3 {[%emt 0:00:
02]} h6 {[%emt 0:00:03]} 5. O-O {[%emt 0:00:02]} Nf6 {[%emt 0:00:02]} 6. Nc3 {
[%emt 0:00:03]} O-O {[%emt 0:00:02]} 7. h3 {[%emt 0:00:02]} d6 {[%emt 0:00:03]}
8. a3 {[%emt 0:00:02]} a6 {[%emt 0:00:03]} 9. Be3 {[%emt 0:00:01]} Bxe3 {
[%emt 0:00:04]} 10. fxe3 {[%emt 0:00:01]} b5 {[%emt 0:00:03]} 11. Ba2 {[%emt 0:
00:04]} Be6 {[%emt 0:00:06]} 12. Bb1 {[%emt 0:00:04]} d5 {[%emt 0:00:08]} 13.
exd5 {[%emt 0:00:02]} Nxd5 {[%emt 0:00:03]} 14. e4 {[%emt 0:00:03]} Nxc3 {
[%emt 0:00:06]} 15. bxc3 {[%emt 0:00:01]} Qd6 {[%emt 0:00:14]} 16. Ba2 {
[%emt 0:00:08]} Bxa2 {[%emt 0:00:04]} 17. Rxa2 {[%emt 0:00:01]} Qe6 {[%emt 0:
00:03]} 18. Qe2 {[%emt 0:00:07]} Qxa2 {[%emt 0:00:18]} 19. d4 {[%emt 0:00:05]}
exd4 {[%emt 0:00:02]} 20. cxd4 {[%emt 0:00:00]} Qe6 {[%emt 0:00:03]} 21. e5 {
[%emt 0:00:03]} Rad8 {[%emt 0:00:06]} 22. c3 {[%emt 0:00:03]} Rfe8 {[%emt 0:00:
25]} 23. Re1 {[%emt 0:00:34]} Qg6 {[%emt 0:00:06]} 24. Nh4 {[%emt 0:00:07]} Qg5
{[%emt 0:00:07]} 25. Nf3 {[%emt 0:00:05]} Qf5 {[%emt 0:00:06]} 26. Nh4 {
[%emt 0:00:06]} Qc8 {[%emt 0:00:11]} 27. Rf1 {[%emt 0:00:08]} a5 {[%emt 0:00:
17]} 28. Qxb5 {[%emt 0:00:03]} Qd7 {[%emt 0:00:14]} 29. d5 {[%emt 0:00:10]}
Qxd5 {[%emt 0:00:07]} 30. Qxd5 {[%emt 0:00:02]} Rxd5 {[%emt 0:00:05]} 31. Rf5 {
[%emt 0:00:07]} Rdxe5 {[%emt 0:00:04]} 32. Rxe5 {[%emt 0:00:02]} Rxe5 {[%emt 0:
00:05]} 33. Nf3 {[%emt 0:00:03]} Rf5 {[%emt 0:00:04]} 34. Nh4 {[%emt 0:00:03]}
Rc5 {[%emt 0:00:06]} 35. c4 {[%emt 0:00:05]} Rxc4 {[%emt 0:00:03]} 36. Nf3 {
[%emt 0:00:03]} Rc3 {[%emt 0:00:04]} 37. Nd2 {[%emt 0:00:02]} Rxa3 {[%emt 0:00:
02]} 38. Nc4 {[%emt 0:00:04]} Rc3 {[%emt 0:00:02]} 39. Nd2 {[%emt 0:00:02]} Rc2
{[%emt 0:00:02]} 40. Nb3 {[%emt 0:00:04]} Rc3 {[%emt 0:00:02]} 41. Na1 {
[%emt 0:00:03]} Rc1+ {[%emt 0:00:05]} 42. Kf2 {[%emt 0:00:03] OnlyHungryKiwi
won by resignation} 0-1

[Event "Fast Chess"]
[Site "ChessKid.com"]
[Date "2020.04.08"]
[Round "3"]
[White "Dai, Lana"]
[Black "Georgiev, Maximilian"]
[Result "1-0"]
[ECO "C50"]
[WhiteElo "1243"]
[BlackElo "1365"]
[PlyCount "45"]
[EventDate "2020.??.??"]
[TimeControl "600"]
[WhiteClock "0:08:05"]
[BlackClock "0:06:01"]

1. e4 {[%emt 0:00:00]} e5 {[%emt 0:00:01]} 2. Nc3 {[%emt 0:00:06]} Nf6 {
[%emt 0:00:05]} 3. Bc4 {[%emt 0:00:01]} Nc6 {[%emt 0:00:05]} 4. Nf3 {[%emt 0:
00:02]} Bb4 {[%emt 0:00:03]} 5. d3 {[%emt 0:00:06]} O-O {[%emt 0:00:04]} 6. Bg5
{[%emt 0:00:06]} h6 {[%emt 0:00:02]} 7. Bh4 {[%emt 0:00:02]} Be7 {[%emt 0:00:
04]} 8. Nd5 {[%emt 0:00:16]} Qe8 {[%emt 0:00:06]} 9. Nxc7 {[%emt 0:00:12]} Qd8
{[%emt 0:00:02]} 10. Nxa8 {[%emt 0:00:04]} b6 {[%emt 0:00:10]} 11. Bxf6 {
[%emt 0:00:20]} Bxf6 {[%emt 0:00:02]} 12. Bd5 {[%emt 0:00:22]} Bb7 {[%emt 0:00:
02]} 13. Bxc6 {[%emt 0:00:06]} Bxc6 {[%emt 0:00:02]} 14. Nxb6 {[%emt 0:00:05]}
Qxb6 {[%emt 0:00:02]} 15. O-O {[%emt 0:00:11]} Qxb2 {[%emt 0:00:01]} 16. a4 {
[%emt 0:00:34]} Re8 {[%emt 0:00:08]} 17. a5 {[%emt 0:00:04]} Bb5 {[%emt 0:00:
07]} 18. Rb1 {[%emt 0:00:08]} Qa3 {[%emt 0:00:07]} 19. Rxb5 {[%emt 0:00:06]} g5
{[%emt 0:00:22]} 20. Rd5 {[%emt 0:00:17]} g4 {[%emt 0:00:03]} 21. Ne1 {[%emt 0:
00:24]} Qa2 {[%emt 0:00:12]} 22. Qxg4+ {[%emt 0:00:08]} Kf8 {[%emt 0:00:07]}
23. Qf5 {[%emt 0:00:20] TopBrownCave won by resignation} 1-0

[Event "Fast Chess"]
[Site "ChessKid.com"]
[Date "2020.04.08"]
[Round "3"]
[White "Li, Tobias"]
[Black "Li, Patrick"]
[Result "1-0"]
[ECO "C55"]
[WhiteElo "1240"]
[BlackElo "979"]
[PlyCount "71"]
[EventDate "2020.??.??"]
[TimeControl "600"]
[WhiteClock "0:04:04"]
[BlackClock "0:08:00"]

1. e4 {[%emt 0:00:00]} e5 {[%emt 0:00:01]} 2. Nf3 {[%emt 0:00:01]} Nc6 {
[%emt 0:00:03]} 3. Nc3 {[%emt 0:00:01]} Nf6 {[%emt 0:00:03]} 4. Bc4 {[%emt 0:
00:01]} h6 {[%emt 0:00:03]} 5. d4 {[%emt 0:00:10]} d5 {[%emt 0:00:11]} 6. exd5
{[%emt 0:00:05]} Nxd5 {[%emt 0:00:03]} 7. Bxd5 {[%emt 0:00:02]} Qg5 {[%emt 0:
00:12]} 8. Bxg5 {[%emt 0:00:03]} h5 {[%emt 0:00:32]} 9. Nxe5 {[%emt 0:00:07]}
Nxd4 {[%emt 0:00:06]} 10. Qxh5 {[%emt 0:00:03]} Rxh5 {[%emt 0:00:11]} 11. Bf4 {
[%emt 0:00:02]} Nxc2+ {[%emt 0:00:02]} 12. Ke2 {[%emt 0:00:06]} Nxa1 {[%emt 0:
00:01]} 13. Rxa1 {[%emt 0:00:03]} Bf5 {[%emt 0:00:10]} 14. Bxf7+ {[%emt 0:00:
12]} Ke7 {[%emt 0:00:04]} 15. Bxh5 {[%emt 0:00:01]} a6 {[%emt 0:00:34]} 16. Bg4
{[%emt 0:00:07]} Bxg4+ {[%emt 0:00:05]} 17. Nxg4 {[%emt 0:00:02]} Re8 {[%emt 0:
00:04]} 18. Re1 {[%emt 0:00:08]} Kd7+ {[%emt 0:00:04]} 19. Kf1 {[%emt 0:00:01]}
Rxe1+ {[%emt 0:00:09]} 20. Kxe1 {[%emt 0:00:02]} Bb4 {[%emt 0:00:10]} 21. Kf1 {
[%emt 0:00:04]} Bxc3 {[%emt 0:00:04]} 22. bxc3 {[%emt 0:00:04]} b6 {[%emt 0:00:
03]} 23. Ne5+ {[%emt 0:00:03]} Kd6 {[%emt 0:00:13]} 24. Nc4+ {[%emt 0:00:05]}
Kd5 {[%emt 0:00:09]} 25. Na3 {[%emt 0:00:02]} Ke4 {[%emt 0:00:18]} 26. Bg3 {
[%emt 0:00:02]} c5 {[%emt 0:00:08]} 27. Bc7 {[%emt 0:00:02]} Kd3 {[%emt 0:00:
23]} 28. h4 {[%emt 0:00:04]} Kxc3 {[%emt 0:00:07]} 29. Bxb6 {[%emt 0:00:01]} c4
{[%emt 0:00:21]} 30. g4 {[%emt 0:00:08]} Kd3 {[%emt 0:00:34]} 31. h5 {[%emt 0:
00:04]} c3 {[%emt 0:00:03]} 32. g5 {[%emt 0:00:02]} c2 {[%emt 0:00:12]} 33.
Nxc2 {[%emt 0:00:01]} Kxc2 {[%emt 0:00:01]} 34. h6 {[%emt 0:00:01]} gxh6 {
[%emt 0:00:11]} 35. gxh6 {[%emt 0:00:00]} Kd1 {[%emt 0:00:21]} 36. h7 {[%emt 0:
00:01] OnlyHungryKiwi won by resignation} 1-0